Cogmind - Beta 15 @@@ ROGUE MODE // 2025.07.21 @ 15:52:03 Player: Sunsh1n3 Result: Destroyed by G-47 Trooper with Particle Gun Performance ------------- Evolutions (2) 1000 Regions Visited (5) 1000 Robots Destroyed (37) 185 Value Destroyed (1164) 1164 Prototype IDs (4) 80 Alien Tech Used (0) 0 Bonus (0) 0 TOTAL SCORE: 3429 Bonus ------- None Cogmind --------- Core Integrity 0/550 Matter 300/300 Energy 100/100 System Corruption 0% Temperature Cool (18) Movement Core (700) Ox13 Location -8/Storage Parts ------- > --- POWER (1) -------- (None) > --- PROPULSION (4) --- (None) > --- UTILITY (3) ------ High-capacity Storage Unit > --- WEAPON (3) ------- (None) > --- INVENTORY (20) --- Ion Engine Improved Ion Engine Aluminum Leg Aluminum Leg Small Storage Unit Signal Interpreter Improved Targeting Computer Improved Targeting Computer Light Armor Plating Light Armor Plating Hardened Light Armor Plating Small Laser Light Assault Rifle Rocket Launcher Mini Grenade Launcher Mining Laser Hammer Mining Claw Peak State ------------ > --- POWER ------------ Nuclear Core > --- PROPULSION ------- Aluminum Leg Aluminum Leg Aluminum Leg Improved Aluminum Leg > --- UTILITY ---------- High-capacity Storage Unit Terrain Scanner Hacking Suite > --- WEAPON ----------- Light Assault Rifle Light Assault Rifle Light Assault Rifle > --- INVENTORY -------- Ion Engine Ion Engine Improved Ion Engine Light Treads Light Treads Light Treads Aluminum Leg Small Storage Unit Signal Interpreter Improved Targeting Computer Light Armor Plating Light Armor Plating Hardened Light Armor Plating Small Laser Light Assault Rifle Rocket Launcher Mini Grenade Launcher Mining Laser Hammer Mining Claw [Rating: 18] Favorites ----------- Power Improved Ion Engine Engine Improved Ion Engine Power Core Nuclear Core Propulsion Aluminum Leg Treads Light Treads Leg Aluminum Leg Wheel Armored Wheel Utility High-capacity Storage Unit Device Terrain Scanner Storage High-capacity Storage Unit Hackware Hacking Suite Protection Light Armor Plating Weapon Light Assault Rifle Energy Gun Small Laser Ballistic Gun Light Assault Rifle Build | -11 -10 -9 -9 -8 -8 ------- Run | Yrd Mat Mat Min Mat Sto Slots Evolved 4 | . . 2 . 2 . Power . | . . . . . . Propulsion 2 | . . 2 . . . Utility 1 | . . . . 1 . Weapon 1 | . . . . 1 . Parts Attached 41 | 6 4 23 3 3 2 Power 8 | 1 2 3 . 1 1 Engine 6 | 1 2 3 . . . Core 2 | . . . . 1 1 Reactor . | . . . . . . Propulsion 16 | 2 . 12 1 . 1 Treads 4 | 2 . 1 . . 1 Leg 8 | . . 7 1 . . Wheel 4 | . . 4 . . . Hover . | . . . . . . Flight . | . . . . . . Utility 8 | 1 1 4 . 2 . Device 1 | . . . . 1 . Storage 2 | 1 1 . . . . Processor . | . . . . . . Hackware 1 | . . . . 1 . Protection 4 | . . 4 . . . Artifact . | . . . . . . Weapon 9 | 2 1 4 2 . . Energy Gun 1 | . . 1 . . . Energy Cannon . | . . . . . . Ballistic Gun 8 | 2 1 3 2 . . Ballistic Cannon . | . . . . . . Launcher . | . . . . . . Special Weapon . | . . . . . . Impact Weapon . | . . . . . . Slashing Weapon . | . . . . . . Piercing Weapon . | . . . . . . Special Melee Weapon . | . . . . . . Unidentified Prototypes . | . . . . . . Parts Lost 21 | . 2 5 . 1 13 Power 6 | . 2 2 . . 2 Propulsion 8 | . . 1 . 1 6 Utility 2 | . . . . . 2 Weapon 5 | . . 2 . . 3 Highest Loss Streak 8 | . 1 2 . 1 8 To Critical Strikes . | . . . . . . Average Backups 14 | 1 5 14 20 19 19 Power 1 | . . 1 2 2 2 Propulsion 3 | 1 2 3 5 4 2 Utility 3 | . 1 2 5 6 7 Weapon 6 | . 2 6 8 7 7 Tool/Special . | . . . . . . Unused Backups 12 | . . 2 . 1 9 Power 2 | . . . . 1 1 Propulsion 2 | . . 2 . . . Utility 3 | . . . . . 3 Weapon 5 | . . . . . 5 Tool/Special . | . . . . . . Average Slot Usage (%) 88 | . 79 88 99 98 76 Engine 8 | . 7 10 11 4 . Core 1 | . . . . 4 8 Treads 7 | . 28 6 . . 4 Leg 21 | . . 18 43 35 18 Wheel 5 | . . 11 . . . Device 1 | . . . . 9 7 Storage 11 | . 14 11 11 9 9 Hackware 1 | . . . . 8 9 Protection 5 | . . 8 11 . . Energy Gun 1 | . . 2 . . . Ballistic Gun 21 | . 28 19 22 25 18 Peak Build Rating 18 | 6 6 16 14 18 18 Average Rating 11 | 4 5 11 13 17 14 On Entrance 9 | . 6 6 14 14 18 Naked Turns . | . . . . . . Heaviest Build 55 | 12 47 54 54 55 51 Greatest Support 48 | 40 40 48 43 43 43 Greatest Overweight (x) 2 | 1 1 2 1 1 2 Average Overweight (x) . | . . . 1 1 1 Largest Inventory Capacity 20 | 8 20 20 20 20 20 Average Capacity 18 | 7 15 20 20 20 20 Most Carried 20 | 4 8 20 20 20 20 Average Carried 14 | 2 5 14 20 19 19 Final Capacity 20 | 8 20 20 20 20 20 Final Carried 20 | 3 8 20 20 20 18 Class Distribution -------------------- 49% | Scavenger-Mutant 33% | Mutant 16% | Scavenger-Skirmisher Dominant Class ---------------- Mutant | -10/Materials Scavenger-Mutant | -9/Materials Scavenger-Mutant | -9/Mines Scavenger-Skirmisher | -8/Materials Scavenger-Skirmisher | -8/Storage Resources | -11 -10 -9 -9 -8 -8 ----------- Run | Yrd Mat Mat Min Mat Sto Matter Collected 910 | 153 107 418 127 51 54 Remotely . | . . . . . . Salvage Created 1386 | . 136 859 104 58 229 Parts 84 | . 10 52 8 3 11 Haulers Intercepted . | . . . . . . Recyclers Shooed 5 | . 1 3 1 . . Parts Field Recycled . | . . . . . . Retrieved Matter . | . . . . . . Parts Self-Destructed . | . . . . . . Prevented . | . . . . . . Kills | -11 -10 -9 -9 -8 -8 ------- Run | Yrd Mat Mat Min Mat Sto Combat Hostiles Destroyed 37 | . 5 22 4 1 5 Melee 1 | . . . . . 1 Guns 36 | . 5 22 4 1 4 Classes Destroyed 5 | . 2 3 . . . Swarmer 10 | . 3 4 3 . . Grunt 19 | . 2 13 1 . 3 Brawler 1 | . . 1 . . . Duelist 1 | . . 1 . . . Sentry 6 | . . 3 . 1 2 Best Kill Streak 4 | . 3 4 4 1 3 Combat Bots Only 4 | . 3 4 4 1 3 Max Kills in Single Turn 1 | . 1 1 1 1 1 Gunslinging . | . . . . . . Exploded . | . . . . . . Melee 1 | . . . . . 1 Uniques/NPCs Destroyed . | . . . . . . Combat | -11 -10 -9 -9 -8 -8 -------- Run | Yrd Mat Mat Min Mat Sto Hostile Shots Fired 371 | . 25 138 59 6 143 Missed 114 | . 4 42 24 2 42 Hits 257 | . 21 96 35 4 101 Melee 14 | . . 8 6 . . Projectile 243 | . 21 88 29 4 101 Critical Strikes 11 | . 1 4 1 1 4 Damage Taken 3635 | . 300 1269 480 68 1518 Core 739 | . 24 98 56 . 561 Absorbed by Shields . | . . . . . . Core Remaining (%) 83 | 100 90 . 61 . . Volleys Fired 152 | . 16 79 25 2 30 Largest 3 | . 2 2 2 3 3 Hottest 60 | . 40 60 40 60 60 Shots Fired 298 | . 32 148 50 6 62 Gun 298 | . 32 148 50 6 62 Cannon . | . . . . . . Launcher . | . . . . . . Special . | . . . . . . Kinetic 279 | . 32 129 50 6 62 Thermal 19 | . . 19 . . . Explosive . | . . . . . . Electromagnetic . | . . . . . . Robot Hit Streak 17 | . 7 17 5 10 11 Robot Miss Streak 4 | . 3 3 4 . 4 Penetration Max . | . . . . . . Secondary Targets 5 | . . 2 1 . 2 Max Gunslinging Chain 1 | . . 1 1 . 1 Shots Hit Robots 211 | . 20 111 27 6 47 Core Hits 91 | . 10 50 10 3 18 Critical Kills . | . . . . . . Critical Parts Destroyed 2 | . 1 1 . . . Critical Strikes 2 | . 1 1 . . . Destroy 2 | . 1 1 . . . Melee Attacks . | . . . . . . Impact . | . . . . . . Slashing . | . . . . . . Piercing . | . . . . . . Sneak Attacks . | . . . . . . Combat Hostiles . | . . . . . . Follow-up Attacks . | . . . . . . Damage Inflicted 1905 | . 167 1050 237 50 401 Guns 1862 | . 166 1030 231 49 386 Cannons . | . . . . . . Explosions . | . . . . . . Melee . | . . . . . . Ramming 43 | . 1 20 6 1 15 Kinetic 1685 | . 166 853 231 49 386 Thermal 177 | . . 177 . . . Explosive . | . . . . . . Electromagnetic . | . . . . . . Impact . | . . . . . . Slashing . | . . . . . . Piercing . | . . . . . . Highest Corruption . | . . . . . . Average Corruption . | . . . . . . Corruption Purged . | . . . . . . Corruption Blocked . | . . . . . . Overload Shots . | . . . . . . Overflow Damage . | . . . . . . Projectiles . | . . . . . . Explosions . | . . . . . . Melee . | . . . . . . Knockbacks 1 | . . 1 . . . Impact 1 | . . 1 . . . Kinetic . | . . . . . . Secondary . | . . . . . . Self-Inflicted Damage . | . . . . . . Shots . | . . . . . . Rammed 8 | . 1 . . . 7 Targets Rammed 15 | . 1 3 1 1 9 Kicked 6 | . . 3 1 1 1 Crushed 1 | . . . . . 1 Highest Temperature 59 | . 19 59 25 39 54 Average Temperature 13 | . 9 14 7 19 18 Received Heat Transfer 1383 | . 99 438 108 27 711 Siege Activations . | . . . . . . Martial Activations . | . . . . . . Shielding Activations . | . . . . . . Robots Disrupted . | . . . . . . Combat Hostiles . | . . . . . . Robots Corrupted . | . . . . . . Combat Hostiles . | . . . . . . Parts Fried . | . . . . . . Impact Corruptions . | . . . . . . Robots Melted . | . . . . . . Combat Hostiles . | . . . . . . Parts Melted . | . . . . . . Heat Transferred 400 | . . 400 . . . Parts Sabotaged . | . . . . . . Parts Stolen . | . . . . . . Parts Stripped . | . . . . . . Power Chain Reactions . | . . . . . . Alert | -11 -10 -9 -9 -8 -8 ------- Run | Yrd Mat Mat Min Mat Sto Maximum Alert Level . | . . . . . . Low Security (%) 100 | 100 100 100 100 100 100 Level 1 . | . . . . . . Level 2 . | . . . . . . Level 3 . | . . . . . . Level 4 . | . . . . . . Level 5 . | . . . . . . High Security . | . . . . . . Max Security . | . . . . . . Peak Influence 123 | . 60 123 107 30 100 Initial 47 | . . . 47 . . Average 38 | . 13 55 55 3 26 Influence Increases 994 | . 124 570 90 42 168 Destroy 0b10 Robot/C 740 | . 100 440 80 20 100 Destroy Leader 170 | . 20 100 10 10 30 Successful Hack 39 | . 4 15 . 12 8 Lose Combat Pursuer 45 | . . 15 . . 30 Influence Decreases 994 | . 124 447 213 42 168 Entered New Map 76 | . . . 76 . . Time Decay 758 | . 114 397 137 42 68 Lost Part 160 | . 10 50 . . 100 Squads Dispatched 6 | . . 3 . . 3 Investigation 1 | . . 1 . . . Extermination . | . . . . . . Reinforcement 3 | . . 2 . . 1 Assault . | . . . . . . Garrison 2 | . . . . . 2 Intercept . | . . . . . . Searches Triggered . | . . . . . . Construction Impeded . | . . . . . . Haulers Reinforced . | . . . . . . Active Scanning Responses . | . . . . . . Cargo Convoy Interrupts . | . . . . . . Stealth | -11 -10 -9 -9 -8 -8 --------- Run | Yrd Mat Mat Min Mat Sto Distress Signals 5 | . . 4 . . 1 Communications Jammed . | . . . . . . Distress Signals . | . . . . . . Times Spotted 57 | . 5 34 5 1 12 Peak Tracking Total 7 | . 3 5 3 1 7 Tactical Retreats 3 | . . 1 . . 2 Traps | -11 -10 -9 -9 -8 -8 ------- Run | Yrd Mat Mat Min Mat Sto Traps Triggered 2 | . 1 1 . . . Indirectly . | . . . . . . Trap Hack Attempts . | . . . . . . Triggered . | . . . . . . Disarmed . | . . . . . . Reprogrammed . | . . . . . . Reused . | . . . . . . Traps Extracted . | . . . . . . Installed . | . . . . . . Triggered . | . . . . . . Machines | -11 -10 -9 -9 -8 -8 ---------- Run | Yrd Mat Mat Min Mat Sto Machines Disabled . | . . . . . . Max in Single Turn . | . . . . . . Machines Repaired . | . . . . . . Machines Dismantled . | . . . . . . Machines Sabotaged . | . . . . . . Overloaded Fab Kills . | . . . . . . Hacking | -11 -10 -9 -9 -8 -8 --------- Run | Yrd Mat Mat Min Mat Sto Machines Accessed 7 | . 2 3 . 1 1 Terminals 6 | . 1 3 . 1 1 Fabricators . | . . . . . . Repair Stations . | . . . . . . Recycling Units 1 | . 1 . . . . Scanalyzers . | . . . . . . Garrison Access . | . . . . . . Total Hacks 12 | . 5 3 . 2 2 Successful 9 | . 3 2 . 2 2 Failed 3 | . 2 1 . . . Catastrophic 1 | . . 1 . . . Database Lockouts . | . . . . . . Manual . | . . . . . . Terminals 9 | . 2 3 . 2 2 Fabricators . | . . . . . . Repair Stations . | . . . . . . Recycling Units 3 | . 3 . . . . Scanalyzers . | . . . . . . Garrison Access . | . . . . . . Terminal Hacks 8 | . 2 2 . 2 2 Record 2 | . 1 1 . . . Prototype ID Bank 2 | . . . . 1 1 Dispatch Records 1 | . 1 . . . . Zone Layout 3 | . . 1 . 1 1 Fabricator Hacks . | . . . . . . Repair Station Hacks . | . . . . . . Recycling Unit Hacks 1 | . 1 . . . . Report Inventory 1 | . 1 . . . . Scanalyzer . | . . . . . . Garrison Access Hacks . | . . . . . . Unauthorized Hacks . | . . . . . . Terminals . | . . . . . . Fabricators . | . . . . . . Repair Stations . | . . . . . . Recycling Units . | . . . . . . Scanalyzers . | . . . . . . Garrison Access . | . . . . . . Data Cores Recovered . | . . . . . . Used . | . . . . . . Hacking Detections 6 | . 2 3 . 1 . Full Trace Events . | . . . . . . Feedback Events . | . . . . . . Feedback Blocked . | . . . . . . Robot Schematics Acquired . | . . . . . . Robots Built . | . . . . . . Authchips . | . . . . . . Time . | . . . . . . Total Robot Build Rating . | . . . . . . Part Schematics Acquired . | . . . . . . Parts Built . | . . . . . . Authchips . | . . . . . . Time . | . . . . . . Total Part Build Rating . | . . . . . . Parts Repaired . | . . . . . . Time . | . . . . . . Parts Recycled . | . . . . . . Recycled Matter . | . . . . . . Retrieved Matter . | . . . . . . Retrieved Components . | . . . . . . Parts Scanalyzed . | . . . . . . Part Schematics Acquired . | . . . . . . Parts Damaged . | . . . . . . Bothacking | -11 -10 -9 -9 -8 -8 ------------ Run | Yrd Mat Mat Min Mat Sto Used RIF Installer . | . . . . . . Robots Hacked . | . . . . . . Non-combat . | . . . . . . Combat . | . . . . . . Robot Hacks Applied . | . . . . . . Relay Couplers Released . | . . . . . . Fabnet Peak Effective % . | . . . . . . Robots Rewired . | . . . . . . Allies Hacked . | . . . . . . Hacks Repelled . | . . . . . . Allies | -11 -10 -9 -9 -8 -8 -------- Run | Yrd Mat Mat Min Mat Sto Total Allies . | . . . . . . Largest Group . | . . . . . . Highest-Rated Group . | . . . . . . Highest-Rated Ally . | . . . . . . Total Orders . | . . . . . . Ally Attacks . | . . . . . . Total Damage . | . . . . . . Kills . | . . . . . . Allies Corrupted . | . . . . . . Allies Melted . | . . . . . . Intel | -11 -10 -9 -9 -8 -8 ------- Run | Yrd Mat Mat Min Mat Sto Active Infowar (turns) 509 | . . . . 300 209 Terrain 509 | . . . . 300 209 Robot Analysis Total . | . . . . . . Derelict Logs Recovered 1 | . . . 1 . . Drone Launches . | . . . . . . Drone Recoveries . | . . . . . . Exploration | -11 -10 -9 -9 -8 -8 ------------- Run | Yrd Mat Mat Min Mat Sto Turns Passed 2565 | 70 373 1289 288 300 245 Spaces Moved 1086 | 41 159 560 114 149 63 Core 8 | 8 . . . . . Treads 317 | 33 159 116 . . 9 Legs 541 | . . 224 114 149 54 Wheels 220 | . . 220 . . . Hover . | . . . . . . Flight . | . . . . . . Fastest Speed 50 | 50 160 90 190 190 190 Average Speed 178 | 139 201 167 190 190 198 Slowest Speed 320 | 160 240 320 190 190 320 Overloaded Moves . | . . . . . . Propulsion Burnouts . | . . . . . . Robots Hopped . | . . . . . . Potential Cave-ins . | . . . . . . Cave-ins Triggered . | . . . . . . Exploration Rate (%) 20 | 4 25 37 35 9 15 Regions Visited 5 Branch Regions 2 Pre-discovered Areas . | . . . . . . Known Exits Taken 1 | . . . . 1 . Unknown Exits Taken 4 | 1 1 1 1 . . Scrap Searched . | . . . . . . Spaces Dug . | . . . . . . Terrain Destroyed . | . . . . . . Melee . | . . . . . . Projectile . | . . . . . . AOE . | . . . . . . Terrain Rammed . | . . . . . . Walls Destroyed . | . . . . . . Machines Disabled . | . . . . . . Actions | -11 -10 -9 -9 -8 -8 --------- Run | Yrd Mat Mat Min Mat Sto Total 1439 | 52 186 784 146 164 107 Wait 97 | . 2 92 . 2 1 Move 1081 | 40 158 559 113 148 63 Hop . | . . . . . . Pick Up 29 | 6 4 15 . 3 1 Fast Attach 13 | 3 2 6 1 1 . Attach 20 | 3 1 10 . 3 3 Detach 5 | . 1 3 . 1 . Swap 14 | . 1 9 3 1 . Drop 13 | . . 8 3 2 . Fire 152 | . 16 79 25 2 30 Melee . | . . . . . . Ram 4 | . . . . . 4 Kick 6 | . . 3 1 1 1 Crush 5 | . 1 . . . 4 Escape Stasis . | . . . . . . Rewire . | . . . . . . Trap . | . . . . . . Miscellaneous . | . . . . . . Route ------- -11/Scrapyard -10/Materials -9/Materials -9/Mines -8/Materials (discovered 3 exits: Fac / *Sto x2) -8/Storage History --------- Turn | Location | Event 27 | -11/Scrapyard | Discovered new exit (range 15) 71 | -11/Scrapyard | Entered Materials 338 | -10/Materials | Build established: Mutant 394 | -10/Materials | Discovered new exit (range 10) 444 | -10/Materials | Entered another Materials area 444 | -9/Materials | Evolved 2 slots: Propulsion x2 1059 | -9/Materials | Build established: Scavenger-Mutant 1679 | -9/Materials | Discovered new exit (range 7) 1733 | -9/Materials | Entered Mines 1956 | -9/Mines | Learned 2 Materials zone layouts 1998 | -9/Mines | Discovered new exit (range 13) 2021 | -9/Mines | Entered Materials 2021 | -8/Materials | Evolved 2 slots: Utility x1, Weapon x1 2022 | -8/Materials | Identified exit to Factory 2022 | -8/Materials | Identified exit to Storage 2129 | -8/Materials | Discovered exit to Storage (range 15) 2305 | -8/Materials | Build established: Scavenger-Skirmisher 2321 | -8/Materials | Entered Storage 2438 | -8/Storage | Garrison activated, responded to threat 2501 | -8/Storage | Lost 5 parts (4n1w) 2543 | -8/Storage | Core integrity fell below 50% 2558 | -8/Storage | Core integrity fell below 20% 2566 | -8/Storage | Destroyed by G-47 Trooper with Particle Gun Last Messages --------------- 02530_ Acquired Aluminum Leg. 02531_ K-01 Serf collects debris. 02534_ K-01 Serf cleans the Storage Shell. 02535_ K-01 Serf collects debris. 02536_ Lgt. Treads destroyed. 02538_ K-01 Serf collects debris. 02539_ Lgt. Treads destroyed. 02539_ Slammed into Y-45 Defender. 02539_ K-01 Serf collects debris. 02542_ Nuclear Core destroyed. 02542_ K-01 Serf collects debris. 02545_ Critical hit (Burn: +37). 02547_ Slammed into Y-45 Defender. 02547_ K-01 Serf collects debris. 02554_ Critical hit (Burn: +37). 02554_ Slammed into G-47 Trooper. 02554_ K-01 Serf collects debris. 02561_ Slammed into G-47 Trooper. 02563_ K-01 Serf cleans the Storage Shell. 02565_ Hacking Suite destroyed. Map ----- +----------------------------------------------------+ | ??????????????????????????###????????? | | ???????????????????######## #????#???? | | ?????????????????### #????????? | | ????????????????? # """"" #????????? | | ?????????????????" # """"" #####????? | | ?????????????????" # """"" # #????# | | ?????????????????" # # #????? | | ????????????????? # """"" # ##???? | | ????????????????? # """"" # T#???? | | ????????????????? # """"" # ##???? | | ????????????????? # # #????? | | ???????????????########+##### ##???? | | ????????????? #????? | | ????????????? #????? | | ????????????? #????? | | ??????????????#########/##### #????? | | ??????????????????# # ##???? | | ?????????????????## ] """ # ###??? | | ??????????????????# G" # #?#??? | | ???????????????#??# """ # #????? | | ???????????????#??# # #????? | | ????????????????#?# # #????? | | ??????????????????# # #?#??? | | ?????????????????## # ##?#?# | | ???????????????????########## ##???? | | ?????????#?????#??## %g@[%# T#?#?# | | ?????????#?????????# *%%sY# ##?#?? | | ???????????#?#??#?## k """%# "##??? | | ???????????????????# """"?"k# T#???? | | ???????????????????# "????" # "#???? | | ??????????????? ???# "????"%+% ##???? | | ???????????????????# "?""""!# #????? | | ???????????????????# """ # #????? | | ???????????? ???"? # # #?###? | | ???????????????????##/####### #?#??# | | ??????????????? ???? ? ? # #????? | | ????????????????? ?? ?? ?# #???#? | | ???????????????????# !!????# T????? | | ????????????????? ?# !!????# ##???? | | ???????????????????/ !!! ??? #????? | | ???????????????????# ???? #????? | | ???????????????????# T?? #?#?#? | | ???????????????????# ??? #????? | | ???????????????????# ?? #????? | | ???????????????????# ######?? #????? | | ???????????????????##????????###?????? | | ?????????????????????????????????????? | | ?????????????????????????????????????? | | ?????????????????????????????????????? | | ?????????????????????????????????????? | +----------------------------------------------------+ Best States ------------- Heat Dissipation 31 Energy Generation 14 Energy Capacity 265 Matter Stores 300 Matter Capacity 300 Sight Range 16 Terrain Scan Range 14 Terrain Scan Density 10 Armor Coverage 150 Evasion (%) 42 Recoil Reduction 2 Offensive Hacking 10 Item Schematics ----------------- None Robot Schematics ------------------ None Fabricated ------------ Nothing Repaired ---------- Nothing Alien Tech Used ----------------- None Achievements -------------- None Challenges ------------ None Game ------ Seed HeartLauncherModule Manual? 0 Play Time 00:21:20 Cumulative 16.6 hours Start 2025.07.21 @ 15:32:42 End 2025.07.21 @ 15:52:03 Sessions 1 Manual Loads 0 Difficulty Rogue Special Mode None Game No. 36 Rogue 36 Adventurer 0 Explorer 0 Win Type - Total 0 Types 0/0/0/0/0/0/0/0/0/0 Lore% 10 Gallery% 18 Achievement% 16 Wizard Run 0 Options --------- Layout 1 ASCII 0 Keyboard 1 Movement Numpad Keybinds 0 Fullscreen 2 Font 24/Smallcaps Map View 50x35 Zoom Use 0% Tactical HUD 1 Map Filters NONE Filters NONE Steam 1 RUN: eac00113-ced0-4658-90dd-f52731790506